{"text_format":"3","workbook":"xlsx","n_sheets":1,"sheets":["Concrete Maintenance"],"not_rendered":{"defined_names":3},"read":"whole","date_system":"1900"}

{"sheet":"Concrete Maintenance","index":0,"n_rows":64,"n_cols":10,"rows_kept":64,"merged":[[0,0,0,8],[1,0,1,8],[2,0,2,8],[3,0,3,8],[4,0,4,8],[5,0,6,1],[5,2,6,2],[5,3,5,4],[5,5,6,5],[5,6,6,6],[5,7,5,8],[7,0,7,8],[8,0,8,8]]}
["23-DES-ITBPW-338 - ATTACHMENT A - BID FORM (PRICING SHEET)"]
["CONCRETE MAINTENANCE WORK CATEGORY - BASE BID WORK, AND RESTRICTED HOURS WORK"]
["Concrete Maintenance Work shall consist generally of isolated projects to install new concrete facilities, or to repair and/or replace existing deficient concrete facilities, such as: curb & gutter, sidewalk, and driveway aprons as identified by the County Project Officer."]
["PLEASE PROVIDE PRICES IN ALL CELLS HIGHLIGHTED IN BLUE FOR BOTH BASE BID WORK, AND RESTRICTED HOURS WORK."]
["All Unit Prices on the Bid Form shall reflect and be inclusive of all costs, including but not limited to:  tasks, labor, supplies, tools, equipment, transportation, mobilization, maintenance of traffic (MOT) clearing and grubbing, demolition, saw-cutting, material provisions and installations, disposals, incidentals, and all things necessary to perform the work as set forth in accordance with project plans and specifications and in compliance with all Arlington County and VDOT Standards and Specifications.",{"$nulls":8}," "]
["LINE ITEM NUMBER",null,"LINE ITEM DESCRIPTION                                                                               (All items per Arlington County Standards & Specs, unless otherwise noted.  Absent Arlington County Standards & Specs, use VDOT Standards & Specs, unless otherwise noted).","UNIT PRICE (UP)",null,"UNITS","TOTAL ESTIMATED ANNUAL QUANTITY (TEQ)","TOTAL ESTIMATED PRICE"]
[{"$nulls":3},"BASE BID WORK ","RESTRICTED HOURS WORK ",null,null,"BASE BID WORK              (UP) x 3/4(TEQ)","RESTRICTED HOURS WORK  (UP) x 1/4(TEQ)","TOTAL"]
[]
["MAINTENANCE WORK"]
[null,1,"Concrete Curb, Standard Header Curb C-3 (Detail R-2.0), includes curb for aprons, ramps, etc. ",null,null,"LF",500,{"$f":"D10*(0.75*G10)","v":0},{"$f":"E10*(0.25*G10)","v":0},{"$f":"SUM(H10:I10)","v":0}]
[null,{"$f":"B10+1","v":2},"Concrete Curb & Gutter, Standard 9.5\" C-4, includes curb & gutter for transit stations",null,null,"LF",300,{"$f":"D11*(0.75*G11)","v":0},{"$f":"E11*(0.25*G11)","v":0},{"$f":"SUM(H11:I11)","v":0}]
[null,{"$f":"B11+1","v":3},"Concrete Curb, Standard Header Curb C-5 (Detail R-2.0), includes curb for medians and protected bike lanes",null,null,"LF",300,{"$f":"D12*(0.75*G12)","v":0},{"$f":"E12*(0.25*G12)","v":0},{"$f":"SUM(H12:I12)","v":0}]
[null,{"$f":"B12+1","v":4},"Concrete Curb, Mountable Curb at Traffic Circle (Detail R-2.7)",null,null,"LF",300,{"$f":"D13*(0.75*G13)","v":0},{"$f":"E13*(0.25*G13)","v":0},{"$f":"SUM(H13:I13)","v":0}]
[null,{"$f":"B13+1","v":5},"Concrete Curb, Standard 6\" (VDOT CG-2), includes curb for aprons, ramps, etc. ",null,null,"LF",500,{"$f":"D14*(0.75*G14)","v":0},{"$f":"E14*(0.25*G14)","v":0},0]
[null,{"$f":"B14+1","v":6},"Concrete Curb, Standard 4\" (VDOT CG-3), includes curb for aprons, ramps, etc. ",null,null,"LF",500,{"$f":"D15*(0.75*G15)","v":0},{"$f":"E15*(0.25*G15)","v":0},0]
[null,{"$f":"B15+1","v":7},"Concrete Curb & Gutter, Standard C-2 and C-2R (Detail R-2.0), includes curb & gutter for aprons, ramps, etc. ",null,null,"LF",{"v":10000,"d":"10,000"},{"$f":"D16*(0.75*G16)","v":0},{"$f":"E16*(0.25*G16)","v":0},0]
[null,{"$f":"B16+1","v":8},"Concrete Curb & Gutter, Combination 6\" (VDOT CG-6), includes curb & gutter for aprons, ramps, etc.",null,null,"LF",500,{"$f":"D17*(0.75*G17)","v":0},{"$f":"E17*(0.25*G17)","v":0},0]
[null,{"$f":"B17+1","v":9},"Concrete Curb & Gutter, Combination 4\" (VDOT CG-7), includes curb & gutter for aprons, ramps, etc.",null,null,"LF",500,{"$f":"D18*(0.75*G18)","v":0},{"$f":"E18*(0.25*G18)","v":0},0]
[null,{"$f":"B18+1","v":10},"Valley Gutter (Detail R-2.9, including all materials as shown in detail)",null,null,"SY",250,{"$f":"D19*(0.75*G19)","v":0},{"$f":"E19*(0.25*G19)","v":0},0]
[null,{"$f":"B19+1","v":11},"Concrete Sidewalk, 4\" Thickness (Detail R-2.0)",null,null,"SY",{"v":10000,"d":"10,000"},{"$f":"D20*(0.75*G20)","v":0},{"$f":"E20*(0.25*G20)","v":0},0]
[null,{"$f":"B20+1","v":12},"Concrete Sidewalk, 6\" Thickness",null,null,"SY",500,{"$f":"D21*(0.75*G21)","v":0},{"$f":"E21*(0.25*G21)","v":0},0]
[null,{"$f":"B21+1","v":13},"Concrete Pavers (Detail R-2.1)",null,null,"SY",100,{"$f":"D22*(0.75*G22)","v":0},{"$f":"E22*(0.25*G22)","v":0},0]
[null,{"$f":"B22+1","v":14},"Concrete Pavers, Remove and Reset (Detail R-2.1)",null,null,"SY",250,{"$f":"D23*(0.75*G23)","v":0},{"$f":"E23*(0.25*G23)","v":0},0]
[null,{"$f":"B23+1","v":15},"Concrete Paver Crosswalk (Detail R-2.6, including all materials as shown in detail)",null,null,"SY",500,{"$f":"D24*(0.75*G24)","v":0},{"$f":"E24*(0.25*G24)","v":0},0]
[null,{"$f":"B24+1","v":16},"Concrete Paver Crosswalk, Remove and Reset (Detail R-2.6, including all materials as shown in detail)",null,null,"SY",500,{"$f":"D25*(0.75*G25)","v":0},{"$f":"E25*(0.25*G25)","v":0},0]
[null,{"$f":"B25+1","v":17},"Concrete Driveway Entrance, 6\" Residential (Details R-2.4A, R-2.4B, R-2.4C, R-2.4D)",null,null,"SY",{"v":10000,"d":"10,000"},{"$f":"D26*(0.75*G26)","v":0},{"$f":"E26*(0.25*G26)","v":0},0]
[null,{"$f":"B26+1","v":18},"Concrete Driveway Entrance, 9\" Commercial (Details R-2.4A, R-2.4B, R-2.4C, R-2.4D)",null,null,"SY",{"v":1000,"d":"1,000"},{"$f":"D27*(0.75*G27)","v":0},{"$f":"E27*(0.25*G27)","v":0},0]
[null,{"$f":"B27+1","v":19},"Grate Inlet Driveway (Detail D-1.12)",null,null,"LF",20,{"$f":"D28*(0.75*G28)","v":0},{"$f":"E28*(0.25*G28)","v":0},0]
[null,{"$f":"B28+1","v":20},"VDOT CG-12 Detectable warning Surface (Slip Resistance Provided by Truncated Domes)",null,null,"SF",{"v":1800,"d":"1,800"},{"$f":"D29*(0.75*G29)","v":0},{"$f":"E29*(0.25*G29)","v":0},0]
[null,{"$f":"B29+1","v":21},"Concrete Steps Each (Detail R-3.0, including all reinforcing bars as shown in detail)",null,null,"LF-W",50,{"$f":"D30*(0.75*G30)","v":0},{"$f":"E30*(0.25*G30)","v":0},0]
[null,{"$f":"B30+1","v":22},"Concrete and Formwork (VDOT Class A3), only when not included in other pay items",null,null,"CY",10,{"$f":"D31*(0.75*G31)","v":0},{"$f":"E31*(0.25*G31)","v":0},0]
[null,{"$f":"B31+1","v":23},"Concrete and Formwork (VDOT Class A4), only when not included in other pay items",null,null,"CY",5,{"$f":"D32*(0.75*G32)","v":0},{"$f":"E32*(0.25*G32)","v":0},0]
[null,{"$f":"B32+1","v":24},"Steel Reinforcement, Welded Wire Fabric (VDOT Section 406), only when not included in other pay items",null,null,"LB",50,{"$f":"D33*(0.75*G33)","v":0},{"$f":"E33*(0.25*G33)","v":0},0]
[null,{"$f":"B33+1","v":25},"Steel Reinforcement, Reinforcing Steel Bars #6 and smaller (VDOT Section 406), only when not included in other pay items",null,null,"LB",75,{"$f":"D34*(0.75*G34)","v":0},{"$f":"E34*(0.25*G34)","v":0},0]
[null,{"$f":"B34+1","v":26},"Steel Reinforcement, Reinforcing Steel Bars #7 up to #10 (VDOT Section 406), only when not included in other pay items",null,null,"LB",50,{"$f":"D35*(0.75*G35)","v":0},{"$f":"E35*(0.25*G35)","v":0},0]
[null,{"$f":"B35+1","v":27},"Concrete Catch Basin, Remove & Replace Top (Detail D-1.1, D-1.2, D-1.3, D-1.4, D-1.13) Concrete thickness 4\" at the throat and 6\" at the back ",null,null,"SF",960,{"$f":"D36*(0.75*G36)","v":0},{"$f":"E36*(0.25*G36)","v":0},0]
[null,{"$f":"B36+1","v":28},"Brick Pavers, Including Concrete Base (Detail R-2.1)",null,null,"SY",50,{"$f":"D37*(0.75*G37)","v":0},{"$f":"E37*(0.25*G37)","v":0},0]
[null,{"$f":"B37+1","v":29},"Adjust Storm or Sanitary Manhole to New Grade (Detail S-2.5), Type A",null,null,"EA",10,{"$f":"D38*(0.75*G38)","v":0},{"$f":"E38*(0.25*G38)","v":0},0]
[null,{"$f":"B38+1","v":30},"Adjust Storm or Sanitary Manhole to New Grade (Detail S-2.5), Type B",null,null,"EA",5,{"$f":"D39*(0.75*G39)","v":0},{"$f":"E39*(0.25*G39)","v":0},0]
[null,{"$f":"B39+1","v":31},"Adjust Storm or Sanitary Manhole to New Grade (Detail S-2.5), Type C",null,null,"EA",5,{"$f":"D40*(0.75*G40)","v":0},{"$f":"E40*(0.25*G40)","v":0},0]
[null,{"$f":"B40+1","v":32},"Partial Wall Repair of Storm Manhole, Catch Basin, Drop Inlet, Yard Inlet, or Grate Inlet (Blocks as per Detail D-2.0)",null,null,"SF",150,{"$f":"D41*(0.75*G41)","v":0},{"$f":"E41*(0.25*G41)","v":0},0]
[null,{"$f":"B41+1","v":33},"Underdrain, Standard VDOT UD-4",null,null,"LF",500,{"$f":"D42*(0.75*G42)","v":0},{"$f":"E42*(0.25*G42)","v":0},0]
[null,{"$f":"B42+1","v":34},"Water Meter Box Vertical Adjustment",null,null,"EA",10,{"$f":"D43*(0.75*G43)","v":0},{"$f":"E43*(0.25*G43)","v":0},0]
[null,{"$f":"B43+1","v":35},"Gas Valve Box Vertical Adjustment to New Grade",null,null,"EA",5,{"$f":"D44*(0.75*G44)","v":0},{"$f":"E44*(0.25*G44)","v":0},0]
[null,{"$f":"B44+1","v":36},"Traffic Box Vertical Adjustment to New Grade",null,null,"EA",5,{"$f":"D45*(0.75*G45)","v":0},{"$f":"E45*(0.25*G45)","v":0},0]
[null,{"$f":"B45+1","v":37},"Electrical Box Vertical Adjustment to New Grade",null,null,"EA",5,{"$f":"D46*(0.75*G46)","v":0},{"$f":"E46*(0.25*G46)","v":0},0]
[null,{"$f":"B46+1","v":38},"Flagstone Walkway - Remove & Reset or Replace to Match Existing",null,null,"SY",20,{"$f":"D47*(0.75*G47)","v":0},{"$f":"E47*(0.25*G47)","v":0},0]
[null,{"$f":"B47+1","v":39},"Landscape Wall - Repoint and Repair",null,null,"SF",200,{"$f":"D48*(0.75*G48)","v":0},{"$f":"E48*(0.25*G48)","v":0},0]
[null,{"$f":"B48+1","v":40},"Retaining Wall - Repoint and Repair (Detail R-4.0, R-4.1, R-4.2, R-4.3)",null,null,"SF",200,{"$f":"D49*(0.75*G49)","v":0},{"$f":"E49*(0.25*G49)","v":0},0]
[null,{"$f":"B49+1","v":41},"Retaining Wall - Remove, Dispose, and Rebuild (Detail R-4.0, R-4.1, R-4.2, R-4.3)",null,null,"CF",20,{"$f":"D50*(0.75*G50)","v":0},{"$f":"E50*(0.25*G50)","v":0},0]
[null,{"$f":"B50+1","v":42},"Retaining Wall Concrete Base - Remove, Dispose, and Rebuild (Detail R-4.1 or R-4.3 Only)",null,null,"CF",10,{"$f":"D51*(0.75*G51)","v":0},{"$f":"E51*(0.25*G51)","v":0},0]
[null,{"$f":"B51+1","v":43},"Asphalt Concrete, Base Course (VDOT BM-25.0A). Item to be used in utility cuts when requested by County Inspector",null,null,"TON",300,{"$f":"D52*(0.75*G52)","v":0},{"$f":"E52*(0.25*G52)","v":0},0]
[null,{"$f":"B52+1","v":44},"Asphalt Concrete, Intermediate Course (VDOT IM-19.0A). Item to be used in utility cuts when requested by County Inspector",null,null,"TON",300,{"$f":"D53*(0.75*G53)","v":0},{"$f":"E53*(0.25*G53)","v":0},0]
[null,{"$f":"B53+1","v":45},"Asphalt Concrete, Surface Course (VDOT SM-9.5A). Item to be used in utility cuts when requested by County Inspector",null,null,"TON",500,{"$f":"D54*(0.75*G54)","v":0},{"$f":"E54*(0.25*G54)","v":0},0]
[null,{"$f":"B54+1","v":46},"Asphalt Header Curb, 6\"-8\" (VDOT SM-9.5A)",null,null,"LF",100,{"$f":"D55*(0.75*G55)","v":0},{"$f":"E55*(0.25*G55)","v":0},0]
[null,{"$f":"B55+1","v":47},"Aggregate, VDOT #21A (compacted in place per VDOT standards & specs). Item to be used in utility cuts when requested by County Inspector",null,null,"CY",100,{"$f":"D56*(0.75*G56)","v":0},{"$f":"E56*(0.25*G56)","v":0},0]
[null,{"$f":"B56+1","v":48},"Excavation (when not part of remove and replace)",null,null,"TON",500,{"$f":"D57*(0.75*G57)","v":0},{"$f":"E57*(0.25*G57)","v":0},0]
[null,{"$f":"B57+1","v":49},"Bus Shelter Pad with #3 Rebar 12\" O.C.E.W., 6\" Thickness, 3,000 psi Concrete",null,null,"SY",100,{"$f":"D58*(0.75*G58)","v":0},{"$f":"E58*(0.25*G58)","v":0},0]
[null,{"$f":"B58+1","v":50},"Aggregate, VDOT #21B (compacted in place per VDOT standards & specs). Item to be used in utility cuts when requested by County Inspector",null,null,"CY",100,{"$f":"D59*(0.75*G59)","v":0},{"$f":"E59*(0.25*G59)","v":0},0]
[null,{"$f":"B59+1","v":51},"Underdrain, Cleanout",null,null,"EA",25,{"$f":"D60*(0.75*G60)","v":0},{"$f":"E60*(0.25*G60)","v":0},0]
[null,{"$f":"B60+1","v":52},"Low-Carbon Concrete Curb & Gutter, Standard C-2 (Detail R-2.0), includes curb & gutter for aprons, ramps, etc. ",null,null,"LF",100,{"$f":"D61*(0.75*G61)","v":0},{"$f":"E61*(0.25*G61)","v":0},0]
[null,{"$f":"B61+1","v":53},"Low-Carbon Concrete Sidewalk, 4\" Thickness (Detail R-2.0)",null,null,"SY",250,{"$f":"D62*(0.75*G62)","v":0},{"$f":"E62*(0.25*G62)","v":0},0]
[null,{"$f":"B62+1","v":54},"Low-Carbon Concrete Driveway Entrance, 6\" Residential (Details R-2.4A, R-2.4B, R-2.4C, R-2.4D)",null,null,"SY",200,{"$f":"D63*(0.75*G63)","v":0},{"$f":"E63*(0.25*G63)","v":0},{"$f":"SUM(H63:I63)","v":0}]
[{"$nulls":8},"GRAND TOTAL:",{"$f":"SUM(J10:J63)","v":0}]